fUST/lending_fUST_20250812
["ID","MTS","AMOUNT","RATE_DAILY","PERIOD"]
[378733817,1754995841940,-460.0,0.00018947,2]
[378733818,1754995841949,-525.52,0.00018947,2]
[378733819,1754995841959,-460.0,0.00018947,2]
[378733820,1754995841969,-460.0,0.00018947,2]
[378733821,1754995841978,-460.0,0.00018947,2]
[378733822,1754995841988,-460.0,0.00018947,2]
[378733823,1754995841998,-460.0,0.00018947,2]
[378733824,1754995842009,-460.0,0.00018947,2]
[378733825,1754995842019,-460.0,0.00018947,2]
[378733826,1754995842029,-463.06559674,0.00018947,2]
[378733827,1754995842040,-528.95,0.00018947,2]
[378733828,1754995842050,-1681.69,0.00018947,2]
[378733829,1754995842059,-491.49,0.00018947,2]
[378733830,1754995842069,-460.0,0.00018947,2]
[378733831,1754995842079,-460.0,0.00018947,2]
[378733832,1754995842089,-460.0,0.00018947,2]
[378733833,1754995842099,-460.0,0.00018947,2]
[378733834,1754995842108,-1634.94,0.00018947,2]
[378733835,1754995842118,-772.61,0.00018947,2]
[378733836,1754995842127,-471.38,0.00018947,2]
[378733837,1754995842137,-674.0,0.00018947,2]
[378733838,1754995842147,-460.0,0.00018947,2]
[378733839,1754995842157,-460.0,0.00018947,2]
[378733840,1754995842167,-460.0,0.00018947,2]
[378733841,1754995842176,-460.0,0.00018947,2]
[378733842,1754995842186,-460.0,0.00018947,2]
[378733843,1754995842196,-1872.62,0.00018947,2]
[378733844,1754995842206,-460.0,0.00018947,2]
[378733845,1754995842216,-776.65,0.00018947,2]
[378733846,1754995842226,-460.0,0.00018947,2]
[378733847,1754995842236,-534.58,0.00018947,2]
[378733848,1754995842245,-7652.32,0.00018947,2]
[378733849,1754995842255,-460.0,0.00018947,2]
[378733850,1754995842264,-2162.21,0.00018947,2]
[378733851,1754995842275,-934.81,0.00018947,2]
[378733852,1754995842284,-2691.14,0.00018947,2]
[378733853,1754995842295,-528.65,0.00018947,2]
[378733854,1754995842304,-460.0,0.00018947,2]
[378733855,1754995842314,-460.0,0.00018947,2]
[378733856,1754995842323,-460.0,0.00018947,2]
[378733857,1754995842333,-1883.48,0.00018947,2]
[378733858,1754995842342,-460.0,0.00018947,2]
[378733859,1754995842352,-460.0,0.00018947,2]
[378733860,1754995842362,-1215.92,0.00018947,2]
[378733861,1754995842371,-461.26,0.00018947,2]
[378733862,1754995842380,-1014.97,0.00018947,2]
[378733863,1754995842389,-749.7,0.00018947,2]
[378733864,1754995842399,-620.15,0.00018947,2]
[378733865,1754995842409,-716.31,0.00018947,2]
[378733866,1754995842419,-460.0,0.00018947,2]
[378733867,1754995842428,-1238.73,0.00018947,2]
[378733868,1754995842438,-698.67,0.00018948,2]
[378733869,1754995842447,-362.31731988,0.00018948,2]
[378733870,1754995842456,-460.0,0.00018948,2]
[378733871,1754995842466,-460.0,0.00018948,2]
[378733872,1754995842475,-460.0,0.00018948,2]
[378733873,1754995842485,-460.0,0.00018948,2]
[378733874,1754995842495,-460.0,0.00018948,2]
[378733875,1754995842505,-460.0,0.00018948,2]
[378733876,1754995842515,-460.0,0.00018948,2]
[378733877,1754995842524,-460.0,0.00018948,2]
[378733878,1754995842534,-460.0,0.00018948,2]
[378733879,1754995842544,-460.0,0.00018948,2]
[378733880,1754995842553,-489.838978,0.00018948,2]
[378733881,1754995842563,-999.39,0.00018948,2]
[378733882,1754995842573,-460.0,0.00018948,2]
[378733883,1754995842583,-460.0,0.00018948,2]
[378733884,1754995842593,-460.0,0.00018948,2]
[378733885,1754995842603,-460.0,0.00018948,2]
[378733886,1754995842613,-460.0,0.00018948,2]
[378733887,1754995842624,-460.0,0.00018948,2]
[378733888,1754995842634,-621.76,0.00018948,2]
[378733889,1754995842644,-460.0,0.00018948,2]
[378733890,1754995842655,-460.0,0.00018948,2]
[378733891,1754995842664,-460.0,0.00018948,2]
[378733892,1754995842674,-460.0,0.00018948,2]
[378733893,1754995842684,-460.0,0.00018948,2]
[378733894,1754995842694,-460.0,0.00018948,2]
[378733895,1754995842704,-460.0,0.00018948,2]
[378733896,1754995842714,-460.0,0.00018948,2]
[378733897,1754995842723,-511.34,0.00018948,2]
[378733898,1754995842733,-460.0,0.00018948,2]
[378733899,1754995842743,-460.0,0.00018948,2]
[378733900,1754995842752,-460.0,0.00018948,2]
[378733901,1754995842762,-460.0,0.00018948,2]
[378733903,1754995842772,-460.0,0.00018948,2]
[378733904,1754995842782,-460.0,0.00018948,2]
[378733905,1754995842793,-625.33,0.00018948,2]
[378733906,1754995842802,-304.52140655,0.00018948,2]
[378733907,1754995842812,-460.0,0.00018948,2]
[378733908,1754995842822,-460.0,0.00018948,2]
[378733910,1754995842833,-973.79,0.00018948,2]
[378733912,1754995842843,-460.0,0.00018948,2]
[378733915,1754995842853,-460.0,0.00018948,2]
[378733917,1754995842863,-460.0,0.00018948,2]
[378733918,1754995842873,-537.23,0.00018948,2]
[378733919,1754995842883,-1295.86,0.00018948,2]
[378733920,1754995842893,-460.0,0.00018948,2]
[378733921,1754995842903,-460.0,0.00018948,2]
[378733922,1754995842912,-460.0,0.00018948,2]
[378733923,1754995842923,-214.25971025,0.00018948,2]
[378733924,1754995842932,-460.0,0.00018948,2]
[378733925,1754995842942,-460.0,0.00018948,2]
[378733926,1754995842952,-500.0,0.00018965,2]
[378733927,1754995842962,-500.0,0.00018965,2]
[378733928,1754995842972,-151.0,0.00018972,2]
[378733930,1754995842982,-500.0,0.00018972,2]
[378733932,1754995842992,-500.0,0.00018972,2]
[378733935,1754995843005,-500.0,0.00018972,2]
[378733937,1754995843015,-500.0,0.00018972,2]
[378733939,1754995843025,-500.0,0.00018972,2]
[378733941,1754995843035,-17842.522448,0.00018972,2]
[378733943,1754995843048,-500.0,0.00018972,2]
[378733945,1754995843058,-500.0,0.00018972,2]
[378733947,1754995843068,-500.0,0.00018972,2]
[378733949,1754995843081,-500.0,0.00018972,2]
[378733951,1754995843092,-500.0,0.00018972,2]
[378733953,1754995843102,-500.0,0.00018972,2]
[378733972,1754995843265,-500.0,0.00018972,2]
[378733974,1754995843275,-500.0,0.00018972,2]
[378733976,1754995843284,-500.0,0.00018972,2]
[378733978,1754995843294,-500.0,0.00018972,2]
[378733980,1754995843303,-500.0,0.00018972,2]
[378733982,1754995843313,-500.0,0.00018972,2]
[378733984,1754995843322,-258.20539447,0.00018976,2]
[378733986,1754995843331,-1385.84431128,0.00018983,2]
[378733987,1754995843341,-504.12150487,0.00018987,2]
[378733989,1754995843350,-181.2635088,0.00018987,2]
[378733991,1754995843359,-500.0,0.00018987,2]
[378733993,1754995843368,-500.0,0.00018987,2]
[378733995,1754995843378,-300.0,0.00019,2]
[378733997,1754995843387,-500.0,0.00019007,2]
[378733999,1754995843397,-500.0,0.00019007,2]
[378734001,1754995843407,-268.4,0.00019115,2]
[378734003,1754995843416,-666.0,0.00019178,2]
[378734005,1754995843425,-460.0,0.0001922,2]
[378734007,1754995843434,-1535.58,0.0001922,2]
[378734009,1754995843443,-460.0,0.0001922,2]
[378734011,1754995843452,-460.0,0.0001922,2]
[378734013,1754995843462,-564.02413072,0.0001922,2]
[378734015,1754995843471,-2261.1,0.0001922,2]
[378734017,1754995843480,-460.0,0.0001922,2]
[378734019,1754995843489,-460.0,0.0001922,2]
[378734022,1754995843499,-502.54,0.0001922,2]
[378734024,1754995843508,-460.0,0.0001922,2]
[378734026,1754995843517,-1166.92,0.0001922,2]
[378734029,1754995843527,-508.01,0.0001922,2]
[378734031,1754995843537,-460.0,0.0001922,2]
[378734033,1754995843546,-1293.46,0.0001922,2]
[378734035,1754995843555,-460.0,0.0001922,2]
[378734037,1754995843565,-460.0,0.0001922,2]
[378734039,1754995843575,-804.3,0.0001922,2]
[378734041,1754995843584,-521.37,0.0001922,2]
[378734043,1754995843594,-484.07,0.0001922,2]
[378734045,1754995843603,-460.0,0.0001922,2]
[378734047,1754995843613,-1077.88,0.0001922,2]
[378734049,1754995843622,-693.23,0.0001922,2]
[378734051,1754995843631,-660.36,0.0001922,2]
[378734053,1754995843640,-863.01,0.0001922,2]
[378734055,1754995843649,-2670.87,0.0001922,2]
[378734056,1754995843659,-460.0,0.0001922,2]
[378734058,1754995843668,-460.0,0.0001922,2]
[378734060,1754995843677,-1446.96,0.0001922,2]
[378734062,1754995843686,-492.56,0.0001922,2]
[378734064,1754995843695,-460.0,0.00019221,2]
[378734066,1754995843705,-546.69,0.00019221,2]
[378734068,1754995843715,-460.0,0.00019221,2]
[378734070,1754995843724,-460.0,0.00019221,2]
[378734072,1754995843734,-460.0,0.00019221,2]
[378734074,1754995843743,-460.0,0.00019221,2]
[378734076,1754995843753,-460.0,0.00019221,2]
[378734078,1754995843762,-525.52,0.00019221,2]
[378734080,1754995843771,-460.0,0.00019221,2]
[378734082,1754995843781,-460.0,0.00019221,2]
[378734084,1754995843790,-460.0,0.00019221,2]
[378734086,1754995843801,-460.0,0.00019221,2]
[378734088,1754995843811,-460.0,0.00019221,2]
[378734090,1754995843820,-460.0,0.00019221,2]
[378734092,1754995843829,-460.0,0.00019221,2]
[378734094,1754995843839,-528.95,0.00019221,2]
[378734096,1754995843848,-1681.69,0.00019221,2]
[378734098,1754995843858,-460.0,0.00019221,2]
[378734100,1754995843867,-491.49,0.00019221,2]
[378734102,1754995843876,-455.0548603,0.00019221,2]
[378734104,1754995843886,-1634.94,0.00019221,2]
[378734106,1754995843895,-772.61,0.00019221,2]
[378734108,1754995843904,-471.38,0.00019221,2]
[378734110,1754995843914,-674.0,0.00019221,2]
[378734112,1754995843923,-487.08010775,0.00019221,2]
[378734114,1754995843932,-460.0,0.00019221,2]
[378734116,1754995843942,-460.0,0.00019221,2]
[378734118,1754995843951,-460.0,0.00019221,2]
[378734120,1754995843961,-460.0,0.00019221,2]
[378734122,1754995843970,-1872.62,0.00019221,2]
[378734124,1754995843980,-776.65,0.00019221,2]
[378734126,1754995843989,-460.0,0.00019221,2]
[378734128,1754995844003,-534.58,0.00019221,2]
[378734131,1754995844013,-7652.32,0.00019221,2]
[378734134,1754995844022,-460.0,0.00019221,2]
[378734136,1754995844031,-2162.21,0.00019221,2]
[378734138,1754995844042,-934.81,0.00019221,2]
[378734140,1754995844051,-2691.14,0.00019221,2]
[378734142,1754995844061,-528.65,0.00019221,2]
[378734144,1754995844071,-460.0,0.00019221,2]
[378734146,1754995844081,-460.0,0.00019221,2]
[378734148,1754995844091,-460.0,0.00019221,2]
[378734150,1754995844101,-1883.48,0.00019221,2]
[378734152,1754995844111,-460.0,0.00019221,2]
[378734154,1754995844121,-1215.92,0.00019221,2]
[378734156,1754995844132,-461.26,0.00019221,2]
[378734158,1754995844141,-1014.97,0.00019221,2]
[378734160,1754995844151,-749.7,0.00019221,2]
[378734162,1754995844160,-620.15,0.00019221,2]
[378734164,1754995844169,-716.31,0.00019221,2]
[378734166,1754995844179,-460.0,0.00019221,2]
[378734168,1754995844188,-1238.73,0.00019221,2]
[378734170,1754995844197,-698.67,0.00019222,2]
[378734172,1754995844207,-460.0,0.00019222,2]
[378734174,1754995844216,-460.0,0.00019222,2]
[378734176,1754995844225,-460.0,0.00019222,2]
[378734178,1754995844235,-460.0,0.00019222,2]
[378734180,1754995844244,-460.0,0.00019222,2]
[378734182,1754995844253,-460.0,0.00019222,2]
[378734184,1754995844262,-449.79802932,0.00019222,2]
[378734186,1754995844271,-460.0,0.00019222,2]
[378734188,1754995844280,-999.39,0.00019222,2]
[378734190,1754995844290,-460.0,0.00019222,2]
[378734191,1754995844299,-460.0,0.00019222,2]
[378734193,1754995844309,-460.0,0.00019222,2]
[378734195,1754995844319,-460.0,0.00019222,2]
[378734197,1754995844328,-460.0,0.00019222,2]
[378734200,1754995844337,-460.0,0.00019222,2]
[378734202,1754995844347,-621.76,0.00019222,2]
[378734204,1754995844357,-460.0,0.00019222,2]
[378734206,1754995844367,-460.0,0.00019222,2]
[378734208,1754995844376,-460.0,0.00019222,2]
[378734210,1754995844385,-460.0,0.00019222,2]
[378734212,1754995844395,-460.0,0.00019222,2]
[378734214,1754995844406,-460.0,0.00019222,2]
[378734216,1754995844415,-460.0,0.00019222,2]
[378734218,1754995844424,-374.96877639,0.00019222,2]
[378734220,1754995844434,-511.34,0.00019222,2]
[378734222,1754995844443,-460.0,0.00019222,2]
[378734224,1754995844452,-375.34549564,0.00019222,2]
[378734226,1754995844462,-460.0,0.00019222,2]
[378734228,1754995844471,-460.0,0.00019222,2]
[378734230,1754995844480,-460.0,0.00019222,2]
[378734232,1754995844489,-625.33,0.00019222,2]
[378734234,1754995844499,-460.0,0.00019222,2]
[378734236,1754995844508,-460.0,0.00019222,2]
[378734238,1754995844517,-973.79,0.00019222,2]
[378734240,1754995844526,-460.0,0.00019222,2]
[378734242,1754995844535,-460.0,0.00019222,2]
[378734244,1754995844544,-460.0,0.00019222,2]
[378734246,1754995844554,-537.23,0.00019222,2]
[378734248,1754995844563,-1295.86,0.00019222,2]
[378734250,1754995844572,-460.0,0.00019222,2]
[378734252,1754995844582,-460.0,0.00019222,2]
[378734254,1754995844591,-460.0,0.00019222,2]
[378734256,1754995844600,-460.0,0.00019222,2]
[378734257,1754995844609,-460.0,0.00019222,2]
[378734259,1754995844619,-1385.84431128,0.00019326,2]
[378734261,1754995844628,-500.0,0.00019368,2]
[378734263,1754995844637,-1500.0,0.00019368,2]
[378734265,1754995844647,-1500.0,0.00019368,2]
[378734267,1754995844656,-268.4,0.00019377,2]
[378734269,1754995844666,-1000.0,0.00019486,2]
[378734271,1754995844675,-1000.0,0.00019486,2]
[378734274,1754995844684,-419.04,0.00019487,3]
[378734275,1754995844693,-12673.43806534,0.00019492,2]
[378734278,1754995844703,-160.0,0.00019492,2]
[378734280,1754995844712,-461.76100612,0.00019492,2]
[378734282,1754995844721,-160.0,0.00019492,2]
[378734283,1754995844730,-160.0,0.00019492,2]
[378734284,1754995844739,-216.70963917,0.00019492,2]
[378734285,1754995844749,-160.0,0.00019492,2]
[378734286,1754995844758,-215.52532928,0.00019492,2]
[378734287,1754995844767,-528.03329096,0.00019492,2]
[378734288,1754995844776,-160.0,0.00019492,2]
[378734289,1754995844785,-160.0,0.00019492,2]
[378734290,1754995844795,-160.0,0.00019492,2]
[378734291,1754995844804,-843.25559725,0.00019492,2]
[378734292,1754995844813,-417.15472785,0.00019492,2]
[378734293,1754995844822,-232.0176383,0.00019492,2]
[378734294,1754995844831,-160.0,0.00019493,2]
[378734296,1754995844840,-460.0,0.00019494,2]
[378734298,1754995844849,-1535.58,0.00019494,2]
[378734300,1754995844859,-460.0,0.00019494,2]
[378734302,1754995844868,-460.0,0.00019494,2]
[378734304,1754995844877,-2261.1,0.00019494,2]
[378734306,1754995844887,-460.0,0.00019494,2]
[378734308,1754995844896,-460.0,0.00019494,2]
[378734310,1754995844906,-502.54,0.00019494,2]
[378734312,1754995844915,-460.0,0.00019494,2]
[378734314,1754995844924,-1166.92,0.00019494,2]
[378734316,1754995844934,-508.01,0.00019494,2]
[378734318,1754995844944,-460.0,0.00019494,2]
[378734320,1754995844953,-1293.46,0.00019494,2]
[378734322,1754995844963,-460.0,0.00019494,2]
[378734324,1754995844972,-203.26591154,0.00019494,2]
[378734326,1754995844981,-804.3,0.00019494,2]
[378734328,1754995844991,-521.37,0.00019494,2]
[378734330,1754995845005,-484.07,0.00019494,2]
[378734332,1754995845015,-460.0,0.00019494,2]
[378734334,1754995845025,-1077.88,0.00019494,2]
[378734336,1754995845034,-693.23,0.00019494,2]
[378734338,1754995845044,-660.36,0.00019494,2]
[378734340,1754995845054,-863.01,0.00019494,2]
[378734342,1754995845063,-2670.87,0.00019494,2]
[378734344,1754995845073,-460.0,0.00019494,2]
[378734346,1754995845082,-1446.96,0.00019494,2]
[378734348,1754995845092,-492.56,0.00019494,2]
[378734350,1754995845102,-460.0,0.00019495,2]
[378734352,1754995845111,-546.69,0.00019495,2]
[378734354,1754995845121,-460.0,0.00019495,2]
[378734356,1754995845130,-460.0,0.00019495,2]
[378734358,1754995845140,-460.0,0.00019495,2]
[378734360,1754995845149,-460.0,0.00019495,2]
[378734362,1754995845158,-460.0,0.00019495,2]
[378734364,1754995845168,-525.52,0.00019495,2]
[378734366,1754995845178,-460.0,0.00019495,2]
[378734368,1754995845188,-460.0,0.00019495,2]
[378734370,1754995845197,-460.0,0.00019495,2]
[378734372,1754995845206,-460.0,0.00019495,2]
[378734374,1754995845216,-460.0,0.00019495,2]
[378734376,1754995845225,-528.95,0.00019495,2]
[378734378,1754995845235,-1681.69,0.00019495,2]
[378734380,1754995845244,-460.0,0.00019495,2]
[378734382,1754995845254,-491.49,0.00019495,2]
[378734384,1754995845263,-1634.94,0.00019495,2]
[378734386,1754995845272,-772.61,0.00019495,2]
[378734388,1754995845282,-471.38,0.00019495,2]
[378734390,1754995845291,-674.0,0.00019495,2]
[378734392,1754995845301,-460.0,0.00019495,2]
[378734394,1754995845311,-460.0,0.00019495,2]
[378734396,1754995845320,-460.0,0.00019495,2]
[378734398,1754995845329,-1872.62,0.00019495,2]
[378734400,1754995845338,-776.65,0.00019495,2]
[378734402,1754995845347,-460.0,0.00019495,2]
[378734404,1754995845357,-534.58,0.00019495,2]
[378734406,1754995845367,-7652.32,0.00019495,2]
[378734408,1754995845376,-460.0,0.00019495,2]
[378734410,1754995845386,-2162.21,0.00019495,2]
[378734412,1754995845395,-934.81,0.00019495,2]
[378734414,1754995845404,-2691.14,0.00019495,2]
[378734416,1754995845413,-528.65,0.00019495,2]
[378734418,1754995845423,-220.13047612,0.00019495,2]
[378734420,1754995845432,-460.0,0.00019495,2]
[378734422,1754995845441,-460.0,0.00019495,2]
[378734424,1754995845451,-1883.48,0.00019495,2]
[378734426,1754995845461,-460.0,0.00019495,2]
[378734428,1754995845470,-1215.92,0.00019495,2]
[378734430,1754995845480,-461.26,0.00019495,2]
[378734432,1754995845489,-1014.97,0.00019495,2]
[378734435,1754995845499,-749.7,0.00019495,2]
[378734440,1754995845544,-620.15,0.00019495,2]
[378734442,1754995845554,-716.31,0.00019495,2]
[378734444,1754995845563,-460.0,0.00019495,2]
[378734446,1754995845573,-1238.73,0.00019495,2]
[378734448,1754995845582,-698.67,0.00019496,2]
[378734450,1754995845592,-460.0,0.00019496,2]
[378734452,1754995845602,-460.0,0.00019496,2]
[378734454,1754995845611,-460.0,0.00019496,2]
[378734456,1754995845621,-460.0,0.00019496,2]
[378734458,1754995845631,-460.0,0.00019496,2]
[378734460,1754995845640,-460.0,0.00019496,2]
[378734462,1754995845649,-460.0,0.00019496,2]
[378734464,1754995845659,-999.39,0.00019496,2]
[378734466,1754995845668,-460.0,0.00019496,2]
[378734468,1754995845677,-460.0,0.00019496,2]
[378734470,1754995845686,-460.0,0.00019496,2]
[378734472,1754995845695,-460.0,0.00019496,2]
[378734474,1754995845705,-460.0,0.00019496,2]
[378734476,1754995845714,-460.0,0.00019496,2]
[378734478,1754995845723,-621.76,0.00019496,2]
[378734480,1754995845733,-460.0,0.00019496,2]
[378734482,1754995845742,-460.0,0.00019496,2]
[378734484,1754995845751,-460.0,0.00019496,2]
[378734486,1754995845760,-460.0,0.00019496,2]
[378734488,1754995845770,-460.0,0.00019496,2]
[378734490,1754995845779,-511.34,0.00019496,2]
[378734492,1754995845788,-460.0,0.00019496,2]
[378734494,1754995845798,-460.0,0.00019496,2]
[378734496,1754995845807,-460.0,0.00019496,2]
[378734498,1754995845816,-625.33,0.00019496,2]
[378734500,1754995845826,-460.0,0.00019496,2]
[378734502,1754995845835,-460.0,0.00019496,2]
[378734504,1754995845844,-973.79,0.00019496,2]
[378734506,1754995845854,-460.0,0.00019496,2]
[378734508,1754995845863,-460.0,0.00019496,2]
[378734510,1754995845872,-460.0,0.00019496,2]
[378734512,1754995845882,-537.23,0.00019496,2]
[378734514,1754995845891,-1295.86,0.00019496,2]
[378734516,1754995845900,-460.0,0.00019496,2]
[378734518,1754995845909,-460.0,0.00019496,2]
[378734520,1754995845919,-460.0,0.00019496,2]
[378734522,1754995845928,-460.0,0.00019496,2]
[378734524,1754995845938,-460.0,0.00019496,2]
[378734526,1754995845948,-503.11918519,0.00019513,2]
[378734528,1754995845956,-317.42164629,0.00019513,2]
[378734530,1754995845966,-1000.0,0.00019535,2]
[378734532,1754995845975,-1000.0,0.00019535,2]
[378734534,1754995845985,-1000.0,0.00019555,2]
[378734536,1754995845995,-1000.0,0.00019555,2]
[378734538,1754995846008,-337.0,0.00019621,2]
[378734540,1754995846018,-268.4,0.0001964,2]
[378734542,1754995846028,-20254.99684151,0.00019644,2]
[378734544,1754995846039,-817.28,0.00019659,3]
[378734546,1754995846048,-408.64,0.00019659,3]
[378734548,1754995846058,-1385.84431128,0.00019668,2]
[378734550,1754995846068,-1052.72932865,0.00019678,2]
[378734552,1754995846078,-1145.00313844,0.00019721,2]
[378734554,1754995846089,-460.0,0.00019768,2]
[378734556,1754995846098,-1535.58,0.00019768,2]
[378734558,1754995846107,-460.0,0.00019768,2]
[378734560,1754995846116,-460.0,0.00019768,2]
[378734562,1754995846126,-2261.1,0.00019768,2]
[378734564,1754995846136,-460.0,0.00019768,2]
[378734566,1754995846145,-502.54,0.00019768,2]
[378734568,1754995846155,-460.0,0.00019768,2]
[378734570,1754995846164,-1166.92,0.00019768,2]
[378734572,1754995846173,-508.01,0.00019768,2]
[378734574,1754995846183,-460.0,0.00019768,2]
[378734576,1754995846192,-1293.46,0.00019768,2]
[378734578,1754995846201,-460.0,0.00019768,2]
[378734580,1754995846210,-804.3,0.00019768,2]
[378734582,1754995846220,-521.37,0.00019768,2]
[378734584,1754995846230,-484.07,0.00019768,2]
[378734586,1754995846239,-460.0,0.00019768,2]
[378734588,1754995846248,-1077.88,0.00019768,2]
[378734590,1754995846257,-693.23,0.00019768,2]
[378734592,1754995846267,-660.36,0.00019768,2]
[378734594,1754995846276,-863.01,0.00019768,2]
[378734596,1754995846285,-2670.87,0.00019768,2]
[378734598,1754995846294,-460.0,0.00019768,2]
[378734600,1754995846303,-1446.96,0.00019768,2]
[378734602,1754995846312,-492.56,0.00019768,2]
[378734603,1754995846321,-460.0,0.00019769,2]
[378734605,1754995846331,-546.69,0.00019769,2]
[378734607,1754995846340,-460.0,0.00019769,2]
[378734609,1754995846349,-460.0,0.00019769,2]
[378734611,1754995846359,-460.0,0.00019769,2]
[378734613,1754995846368,-525.52,0.00019769,2]
[378734615,1754995846378,-460.0,0.00019769,2]
[378734617,1754995846387,-460.0,0.00019769,2]
[378734619,1754995846396,-460.0,0.00019769,2]
[378734621,1754995846405,-460.0,0.00019769,2]
[378734623,1754995846415,-460.0,0.00019769,2]
[378734625,1754995846424,-528.95,0.00019769,2]
[378734627,1754995846433,-1681.69,0.00019769,2]
[378734629,1754995846442,-460.0,0.00019769,2]
[378734631,1754995846451,-491.49,0.00019769,2]
[378734633,1754995846461,-1634.94,0.00019769,2]
[378734635,1754995846471,-772.61,0.00019769,2]
[378734636,1754995846481,-471.38,0.00019769,2]
[378734637,1754995846490,-674.0,0.00019769,2]
[378734638,1754995846499,-460.0,0.00019769,2]
[378734639,1754995846509,-460.0,0.00019769,2]
[378734640,1754995846518,-460.0,0.00019769,2]
[378734641,1754995846527,-1872.62,0.00019769,2]
[378734642,1754995846536,-776.65,0.00019769,2]
[378734643,1754995846545,-460.0,0.00019769,2]
[378734644,1754995846554,-534.58,0.00019769,2]
[378734645,1754995846563,-7652.32,0.00019769,2]
[378734646,1754995846572,-460.0,0.00019769,2]
[378734648,1754995846581,-2162.21,0.00019769,2]
[378734650,1754995846590,-934.81,0.00019769,2]
[378734652,1754995846599,-2691.14,0.00019769,2]
[378734654,1754995846608,-528.65,0.00019769,2]
[378734656,1754995846618,-460.0,0.00019769,2]
[378734658,1754995846627,-460.0,0.00019769,2]
[378734660,1754995846636,-1883.48,0.00019769,2]
[378734662,1754995846646,-460.0,0.00019769,2]
[378734664,1754995846655,-1215.92,0.00019769,2]
[378734666,1754995846664,-461.26,0.00019769,2]
[378734668,1754995846673,-1014.97,0.00019769,2]
[378734670,1754995846682,-749.7,0.00019769,2]
[378734672,1754995846691,-620.15,0.00019769,2]
[378734674,1754995846700,-716.31,0.00019769,2]
[378734676,1754995846709,-460.0,0.00019769,2]
[378734678,1754995846718,-1238.73,0.00019769,2]
[378734680,1754995846727,-698.67,0.0001977,2]
[378734682,1754995846737,-460.0,0.0001977,2]
[378734684,1754995846746,-460.0,0.0001977,2]
[378734686,1754995846755,-460.0,0.0001977,2]
[378734688,1754995846764,-460.0,0.0001977,2]
[378734690,1754995846773,-460.0,0.0001977,2]
[378734692,1754995846782,-460.0,0.0001977,2]
[378734694,1754995846791,-460.0,0.0001977,2]
[378734696,1754995846801,-999.39,0.0001977,2]
[378734698,1754995846810,-460.0,0.0001977,2]
[378734700,1754995846819,-460.0,0.0001977,2]
[378734702,1754995846828,-460.0,0.0001977,2]
[378734704,1754995846837,-460.0,0.0001977,2]
[378734706,1754995846847,-460.0,0.0001977,2]
[378734708,1754995846856,-460.0,0.0001977,2]
[378734710,1754995846865,-621.76,0.0001977,2]
[378734712,1754995846875,-460.0,0.0001977,2]
[378734714,1754995846886,-460.0,0.0001977,2]
[378734716,1754995846897,-460.0,0.0001977,2]